Cogmind - Beta 10.2 @@@ ROGUE MODE // 2021.09.25 @ 09:50:11 Player: tangiers Result: Destroyed by G-47 Trooper with Particle Gun Performance ------------- Evolutions (0) 0 Regions Visited (2) 400 Robots Destroyed (25) 125 Value Destroyed (417) 417 Prototype IDs (4) 80 Alien Tech Used (0) 0 Bonus (0) 0 TOTAL SCORE: 1022 Bonus ------- None Cogmind --------- Core Integrity 0/250 Matter 300/300 Energy 100/100 System Corruption 0% Temperature Cool (9) Movement Core (300) Ox5 Location -10/Mines Parts ------- > --- POWER (1) -------- (None) > --- PROPULSION (2) --- (None) > --- UTILITY (2) ------ Large Storage Unit > --- WEAPON (2) ------- (None) > --- INVENTORY (10) --- Ion Engine Wheel Medium Storage Unit Large Storage Unit High-capacity Battery (400) Large Matter Pod (150) High-capacity Matter Pod (200) Mining Laser Peak State ------------ > --- POWER ------------ Ion Engine > --- PROPULSION ------- Light Treads Wheel > --- UTILITY ---------- Improved Heat Sink Large Storage Unit > --- WEAPON ----------- Medium Laser Assault Rifle > --- INVENTORY -------- Ion Engine Light Treads Wheel Wheel Medium Storage Unit Large Storage Unit High-capacity Battery Large Matter Pod Small Laser Mining Laser [Rating: 10] Favorites ----------- Power Ion Engine Engine Ion Engine Propulsion Light Treads Treads Light Treads Leg Aluminum Leg Wheel Wheel Utility Large Storage Unit Device Improved Heat Sink Storage Large Storage Unit Weapon Medium Laser Energy Gun Medium Laser Ballistic Gun Assault Rifle Special Weapon Mining Laser Build | -11 -10 -10 ------- Run | Scr Mat Min Slots Evolved . | . . . Power . | . . . Propulsion . | . . . Utility . | . . . Weapon . | . . . Parts Attached 29 | 4 16 9 Power 2 | . 1 1 Engine 2 | . 1 1 Core . | . . . Reactor . | . . . Propulsion 16 | 2 10 4 Treads 7 | 1 4 2 Leg . | . . . Wheel 9 | 1 6 2 Hover . | . . . Flight . | . . . Utility 5 | 1 2 2 Device 3 | 1 1 1 Storage 2 | . 1 1 Processor . | . . . Hackware . | . . . Protection . | . . . Artifact . | . . . Weapon 6 | 1 3 2 Energy Gun 4 | . 3 1 Energy Cannon . | . . . Ballistic Gun 1 | 1 . . Ballistic Cannon . | . . . Launcher . | . . . Special Weapon 1 | . . 1 Impact Weapon . | . . . Slashing Weapon . | . . . Piercing Weapon . | . . . Special Melee Weapon . | . . . Unidentified Prototypes . | . . . Parts Lost 10 | . 2 8 Power 1 | . . 1 Propulsion 3 | . . 3 Utility 1 | . . 1 Weapon 5 | . 2 3 Highest Loss Streak 3 | . 1 3 Average Slot Usage (%) 90 | . 100 83 Engine 12 | . 14 11 Treads 13 | . 15 12 Wheel 12 | . 12 13 Device 11 | . 14 9 Storage 16 | . 14 18 Energy Gun 15 | . 14 16 Ballistic Gun 5 | . 13 . Naked Turns . | . . . Heaviest Build 40 | 14 26 40 Greatest Support 40 | 20 40 40 Greatest Overweight (x) 3 | 1 2 3 Average Overweight (x) 1 | . 1 2 Largest Inventory Capacity 16 | 6 10 16 Average Capacity 10 | 6 9 12 Most Carried 14 | 6 10 14 Average Carried 8 | 5 8 8 Final Capacity 10 | 6 10 10 Final Carried 9 | 6 9 8 Class Distribution -------------------- 100% | Mutant Dominant Class ---------------- Mutant | -10/Materials Mutant | -10/Mines Resources | -11 -10 -10 ----------- Run | Scr Mat Min Matter Collected 744 | 252 315 177 Remotely . | . . . Salvage Created 711 | 143 315 253 Parts 40 | 8 22 10 Haulers Intercepted . | . . . Recyclers Shooed 2 | . . 2 Parts Field Recycled . | . . . Retrieved Matter . | . . . Parts Self-Destructed . | . . . Prevented . | . . . Kills | -11 -10 -10 ------- Run | Scr Mat Min Combat Hostiles Destroyed 17 | . 11 6 Guns 17 | . 11 6 Classes Destroyed 5 | 2 3 . Worker 2 | . 1 1 Tunneler 4 | 4 . . Recycler 2 | 1 . 1 Swarmer 9 | . 6 3 Grunt 8 | . 5 3 Best Kill Streak 4 | 3 3 4 Combat Bots Only 3 | . 3 3 Max Kills in Single Turn 2 | 1 1 2 Gunslinging 1 | . . 1 Exploded . | . . . Melee . | . . . Uniques/NPCs Destroyed . | . . . Combat | -11 -10 -10 -------- Run | Scr Mat Min Damage Taken 1170 | . 513 657 Core 256 | . 53 203 Absorbed by Shields . | . . . Core Remaining (%) 100 | 100 . . Volleys Fired 69 | 7 41 21 Largest 2 | 2 2 2 Hottest 100 | 90 90 100 Shots Fired 131 | 14 82 35 Gun 130 | 14 82 34 Cannon . | . . . Launcher . | . . . Special 1 | . . 1 Kinetic 44 | 4 40 . Thermal 87 | 10 42 35 Explosive . | . . . Electromagnetic . | . . . Robot Hit Streak 14 | 6 14 13 Robot Miss Streak 5 | 1 5 4 Penetration Max . | . . . Secondary Targets 4 | . 1 3 Max Gunslinging Chain 1 | . 1 1 Shots Hit Robots 86 | 10 49 27 Core Hits 42 | 6 17 19 Critical Hits . | . . . Critical Kills . | . . . Critical Parts Destroyed . | . . . Melee Attacks . | . . . Impact . | . . . Slashing . | . . . Piercing . | . . . Sneak Attacks . | . . . Combat Hostiles . | . . . Follow-up Attacks . | . . . Damage Inflicted 1127 | 134 615 378 Guns 1095 | 134 615 346 Cannons . | . . . Explosions . | . . . Melee . | . . . Ramming 32 | . . 32 Kinetic 263 | 23 240 . Thermal 832 | 111 375 346 Explosive . | . . . Electromagnetic . | . . . Impact . | . . . Slashing . | . . . Piercing . | . . . Highest Corruption . | . . . Average Corruption . | . . . Corruption Purged . | . . . Overload Shots . | . . . Overflow Damage . | . . . Projectiles . | . . . Explosions . | . . . Melee . | . . . Knockbacks . | . . . Impact . | . . . Kinetic . | . . . Secondary . | . . . Self-Inflicted Damage 1 | . . 1 Shots . | . . . Rammed 19 | . . 19 Targets Rammed 20 | . . 20 Kicked . | . . . Crushed 1 | . . 1 Highest Temperature 172 | 90 108 172 Average Temperature 57 | 30 52 76 Received Heat Transfer 447 | . 132 315 Siege Activations . | . . . Robots Corrupted . | . . . Combat Hostiles . | . . . Parts Fried . | . . . Impact Corruptions . | . . . Robots Melted . | . . . Combat Hostiles . | . . . Parts Melted 7 | 1 2 4 Heat Transferred 2190 | 309 1002 879 Parts Sabotaged . | . . . Parts Stolen . | . . . Parts Stripped . | . . . Power Chain Reactions . | . . . Missiles Intercepted . | . . . Alert | -11 -10 -10 ------- Run | Scr Mat Min Peak Influence 215 | 25 204 215 Initial 60 | . 16 60 Average 76 | 11 91 71 Maximum Alert Level 1 | . 1 1 Low Security (%) 98 | 100 97 98 Level 1 1 | . 2 1 Level 2 . | . . . Level 3 . | . . . Level 4 . | . . . Level 5 . | . . . High Security . | . . . Max Security . | . . . Squads Dispatched 2 | . 2 . Investigation 2 | . 2 . Extermination . | . . . Reinforcement . | . . . Assault . | . . . Garrison . | . . . Intercept . | . . . Construction Impeded . | . . . Haulers Reinforced . | . . . Stealth | -11 -10 -10 --------- Run | Scr Mat Min Distress Signals 1 | . 1 . Communications Jammed . | . . . Distress Signals . | . . . Times Spotted 34 | . 15 19 Peak Tracking Total 4 | . 4 3 Tactical Retreats 7 | . 2 5 Traps | -11 -10 -10 ------- Run | Scr Mat Min Traps Triggered 2 | . 2 . Indirectly . | . . . Trap Hack Attempts . | . . . Triggered . | . . . Disarmed . | . . . Reprogrammed . | . . . Reused 3 | . . 3 Traps Extracted . | . . . Installed 5 | . . 5 Triggered 3 | . . 3 Machines | -11 -10 -10 ---------- Run | Scr Mat Min Machines Disabled . | . . . Max in Single Turn . | . . . Machines Sabotaged . | . . . Garrisons Compromised . | . . . Overloaded Fab Kills . | . . . Fab Network Shutdowns . | . . . Hacking | -11 -10 -10 --------- Run | Scr Mat Min Machines Accessed 8 | . 8 . Terminals 7 | . 7 . Fabricators . | . . . Repair Stations . | . . . Recycling Units 1 | . 1 . Scanalyzers . | . . . Garrison Access . | . . . Total Hacks 23 | . 23 . Successful 9 | . 9 . Failed 13 | . 13 . Catastrophic 1 | . 1 . Database Lockouts 1 | . 1 . Manual 14 | . 14 . Terminals 21 | . 21 . Fabricators . | . . . Repair Stations . | . . . Recycling Units 2 | . 2 . Scanalyzers . | . . . Garrison Access . | . . . Terminal Hacks 5 | . 5 . Robot Analysis 1 | . 1 . Prototype ID Bank 2 | . 2 . Branch Access Points 1 | . 1 . Terminal Index 1 | . 1 . Fabricator Hacks . | . . . Repair Station Hacks . | . . . Recycling Unit Hacks 1 | . 1 . Retrieve Matter 1 | . 1 . Scanalyzer . | . . . Garrison Access Hacks . | . . . Unauthorized Hacks 3 | . 3 . Terminals 2 | . 2 . Track 1 | . 1 . Operators 1 | . 1 . Fabricators . | . . . Repair Stations . | . . . Recycling Units 1 | . 1 . Tunnel 1 | . 1 . Scanalyzers . | . . . Garrison Access . | . . . Data Cores Recovered . | . . . Used . | . . . Hacking Detections 7 | . 7 . Full Trace Events 1 | . 1 . Feedback Events . | . . . Feedback Blocked . | . . . Robot Schematics Acquired . | . . . Robots Built . | . . . Matter . | . . . Time . | . . . Total Robot Build Rating . | . . . Part Schematics Acquired . | . . . Parts Built . | . . . Matter . | . . . Time . | . . . Total Part Build Rating . | . . . Parts Repaired . | . . . Time . | . . . Parts Recycled . | . . . Recycled Matter . | . . . Retrieved Matter . | . . . Retrieved Components . | . . . Parts Scanalyzed . | . . . Part Schematics Acquired . | . . . Parts Damaged . | . . . Bothacking | -11 -10 -10 ------------ Run | Scr Mat Min Used RIF Installer . | . . . Robots Hacked . | . . . Non-combat . | . . . Combat . | . . . Robot Hacks Applied . | . . . Relay Couplers Released . | . . . Robots Rewired . | . . . Allies Hacked . | . . . Hacks Repelled . | . . . Allies | -11 -10 -10 -------- Run | Scr Mat Min Total Allies . | . . . Largest Group . | . . . Highest-Rated Group . | . . . Highest-Rated Ally . | . . . Total Orders . | . . . Ally Attacks . | . . . Total Damage . | . . . Kills . | . . . Allies Corrupted . | . . . Allies Melted . | . . . Intel | -11 -10 -10 ------- Run | Scr Mat Min Robot Analysis Total 1 | . 1 . Derelict Logs Recovered 1 | . . 1 Drone Launches . | . . . Drone Recoveries . | . . . Exploration | -11 -10 -10 ------------- Run | Scr Mat Min Turns Passed 1693 | 75 644 974 Spaces Moved 870 | 43 479 348 Core . | . . . Treads 14 | 9 4 1 Legs 5 | 5 . . Wheels 851 | 29 475 347 Hover . | . . . Flight . | . . . Fastest Speed 90 | 90 90 90 Average Speed 99 | 108 98 100 Slowest Speed 180 | 160 180 160 Overloaded Moves . | . . . Propulsion Burnouts . | . . . Robots Hopped . | . . . Cave-ins Triggered . | . . . Exploration Rate (%) 45 | 3 82 50 Regions Visited 2 Branch Regions 1 Pre-discovered Areas 2 | . 1 1 Known Exits Taken 1 | . 1 . Unknown Exits Taken 1 | 1 . . Scrap Searched . | . . . Spaces Dug . | . . . Terrain Destroyed . | . . . Melee . | . . . Projectile . | . . . AOE . | . . . Terrain Rammed . | . . . Walls Destroyed . | . . . Machines Disabled . | . . . Actions | -11 -10 -10 --------- Run | Scr Mat Min Total 1535 | 57 569 909 Wait 507 | . 19 488 Move 868 | 42 478 348 Hop . | . . . Pick Up 16 | 1 7 8 Fast Attach 3 | 2 1 . Attach 8 | 2 2 4 Detach 3 | 1 . 2 Swap 18 | . 13 5 Drop 18 | 2 8 8 Fire 69 | 7 41 21 Melee . | . . . Ram 12 | . . 12 Kick . | . . . Crush 8 | . . 8 Escape Stasis . | . . . Rewire . | . . . Trap 5 | . . 5 Miscellaneous . | . . . Route ------- -11/Scrapyard -10/Materials (discovered 3 exits: [*Mat x2] / *Min) -10/Mines (discovered 1 exit: [*Mat]) History --------- Turn | Location | Event 1 | -11/Scrapyard | Discovered new exit (range 3) 76 | -11/Scrapyard | Entered Materials 110 | -10/Materials | Identified exit to Mines 135 | -10/Materials | Discovered new exit (range 15) 316 | -10/Materials | Build established: Mutant 417 | -10/Materials | Central database locked down 509 | -10/Materials | Discovered new exit (range 16) 720 | -10/Materials | Entered Mines 770 | -10/Mines | Discovered new exit (range 6) 787 | -10/Mines | Found a hidden stash of uninstalled traps 896 | -10/Mines | Excavation squad dispatched 896 | -10/Mines | A large section of the Mines collapsed 1548 | -10/Mines | Core integrity fell below 50% 1575 | -10/Mines | Lost 3 parts (1p1n1w) 1681 | -10/Mines | Core integrity fell below 20% 1694 | -10/Mines | Destroyed by G-47 Trooper with Particle Gun Last Messages --------------- 01572_ T-07 Excavator is excavating. 01666_ G-47 Trooper misfires. 01666_ Slammed into G-34 Mercenary. 01666_ G-34 Mercenary triggered Proton Bomb Trap. 01666_ A bubble of electromagnetic force engulfs the area. 01666_ G-34 Mercenary destroyed. 01666_ Wheel destroyed. 01667_ Slammed into G-47 Trooper. 01670_ Destabilizing: System interference. 01670_ Imp. Heat Sink temporarily disabled. 01670_ U-05 Engineer lays Concrete. 01673_ Slammed into G-47 Trooper. 01674_ U-05 Engineer lays Concrete. 01676_ Slammed into G-47 Trooper. 01678_ U-05 Engineer lays Concrete. 01679_ Slammed into G-47 Trooper. 01679_ U-05 Engineer lays Concrete. 01682_ Slammed into G-47 Trooper. 01690_ Imp. Heat Sink destroyed. 01691_ Slammed into G-47 Trooper. Map ----- +----------------------------------------------------+ | ????????????????????????? #?????????????? | | ????????????????????????? #?????????????? | | ???????????????????????## ##????????????? | | ??????????????????????## #????????????? | | ?????????????????????## ##???????????? | | ??#########??????????# ##??????????? | | ??# #??????????# #??????????? | | ??# #??????????# ???????????? | | ??# #???????????# ?????????????? | | ??# ############## #??????????????? | | ??# =[= #??????????????? | | ??# ##### ######## ##?????????????? | | ??# ##### #???# #####?????????? | | ??# """ #???# #???###???? | | ??# """ #######???# ### #??## ##??? | | ??# """ #?????????# ### #### ##?? | | ??# #?????????# < ##? | | ??# #?????????# ######### #? | | ??#########?????????#######???????## #? | | ???????????????????????????????????# #? | | ??????????????????????#####???????## ##? | | ????????????###????#### ######### #?? | | ???????????## ###### *u% % " ### | | ???????????# *##*= % ### ### | | ???????????# %%%=# ##?# #### | | ???????????## g@%%[## ###??# ## ### | | ????????????## %%%### #????#### ## #?? | | ?????????????## ##?# #???????# ## #?? | | ??????????????#####??# #???????# #?? | | ????????????????###### #???????# ####### | | ??# ??????????# #??????## #??## | | ??# ####### #??????# #### | | ??? """ ######??????## ## | | ??? """ ##########???????????## | | ??? ""???????????????????????### | | ????????????????????????????## | | ???????????????????????????## | | ???????????????????????????# # | | ??????????????????????????## ## #### | | ??????????????????????????# ######??? | | ?????????????????????????# #???????? | | ?????????????????????????# #??????? | | ?????????????????????????# #??????? | | ?????????????????????????## ##??????? | | ??????????????????????????## ###???????? | | ???????????????????????????###??????????? | | ????????????????????????????????????????? | | | | | | | +----------------------------------------------------+ Best States ------------- Heat Dissipation 39 Energy Generation 10 Energy Capacity 250 Matter Stores 300 Matter Capacity 300 Sight Range 16 Terrain Scan Range 16 Terrain Scan Density 10 Evasion (%) 42 Recoil Reduction 2 Item Schematics ----------------- None Robot Schematics ------------------ None Fabricated ------------ Nothing Alien Tech Used ----------------- None Achievements -------------- None Challenges ------------ None Game ------ Seed GhostFlakBay Manual? 0 Play Time 00:19:52 Cumulative 287.8 hours Start 2021.09.16 @ 11:36:16 End 2021.09.25 @ 09:50:11 Sessions 2 Manual Loads 0 Difficulty Rogue Special Mode None Game No. 211 Rogue 211 Adventurer 0 Explorer 0 Win Type - Total 6 Types 5/0/1/0/0/0/0/0/0 Lore% 52 Gallery% 74 Achievement% 60 Wizard Run 0 Options --------- ASCII 0 Keyboard 0 Movement Numpad Keybinds 0 Fullscreen 2 Font 18/TerminusBold Map View 76x50 Tactical HUD 1 Map Filters NONE Filters NONE Steam 1 RUN: 5d9d1c00-9235-4fe1-8904-d3138e0dccc6